fUSD/lending_fUSD_20260202
["ID","MTS","AMOUNT","RATE_DAILY","PERIOD"]
[404246570,1769999440712,-500.0,0.00014165,2]
[404246571,1769999440722,-500.0,0.00014165,2]
[404246572,1769999440731,-500.0,0.00014165,2]
[404246574,1769999440744,-500.0,0.00014165,2]
[404246575,1769999440754,-500.0,0.00014165,2]
[404246576,1769999440763,-500.0,0.00014165,2]
[404246577,1769999440772,-500.0,0.00014165,2]
[404246578,1769999440781,-500.0,0.00014165,2]
[404246579,1769999440791,-500.0,0.00014165,2]
[404246580,1769999440800,-500.0,0.00014165,2]
[404246581,1769999440809,-500.0,0.00014165,2]
[404246582,1769999440819,-500.0,0.00014165,2]
[404246583,1769999440828,-500.0,0.00014165,2]
[404246584,1769999440838,-500.0,0.00014165,2]
[404246585,1769999440847,-500.0,0.00014165,2]
[404246586,1769999440857,-500.0,0.00014165,2]
[404246587,1769999440866,-500.0,0.00014165,2]
[404246588,1769999440875,-500.0,0.00014165,2]
[404246589,1769999440884,-500.0,0.00014165,2]
[404246590,1769999440893,-500.0,0.00014165,2]
[404246591,1769999440902,-500.0,0.00014165,2]
[404246592,1769999440911,-500.0,0.00014165,2]
[404246593,1769999440920,-500.0,0.00014165,2]
[404246594,1769999440929,-500.0,0.00014165,2]
[404246595,1769999440938,-500.0,0.00014165,2]
[404246596,1769999440947,-223.01247673,0.00014165,2]
[404246597,1769999440956,-500.0,0.00014165,2]
[404246598,1769999440966,-500.0,0.00014165,2]
[404246599,1769999440976,-500.0,0.00014165,2]
[404246600,1769999440985,-500.0,0.00014165,2]
[404246601,1769999440995,-500.0,0.00014165,2]
[404246602,1769999441004,-500.0,0.00014165,2]
[404246604,1769999441013,-191.44583075,0.00014165,2]
[404246606,1769999441022,-500.0,0.00014165,2]
[404246608,1769999441032,-500.0,0.00014165,2]
[404246609,1769999441041,-500.0,0.00014165,2]
[404246610,1769999441050,-500.0,0.00014165,2]
[404246611,1769999441059,-500.0,0.00014165,2]
[404246612,1769999441068,-500.0,0.00014165,2]
[404246613,1769999441077,-500.0,0.00014165,2]
[404246614,1769999441086,-500.0,0.00014165,2]
[404246615,1769999441096,-500.0,0.00014165,2]
[404246616,1769999441105,-500.0,0.00014165,2]
[404246617,1769999441114,-500.0,0.00014165,2]
[404246618,1769999441123,-500.0,0.00014165,2]
[404246619,1769999441132,-2896.0796,0.00014166,2]
[404246620,1769999441141,-1000.0,0.00014266,2]
[404246621,1769999441151,-1413.88417946,0.00014312,2]
[404246622,1769999441161,-13796.64598922,0.00014378,2]
[404246623,1769999441170,-8843.25208213,0.00014403,2]
[404246624,1769999441179,-10000.0,0.00014412,2]
[404246625,1769999441189,-1153.37125092,0.00014527,2]
[404246626,1769999441198,-1153.37125092,0.00014527,2]
[404246627,1769999441207,-6002.71,0.00014611,2]
[404246628,1769999441216,-200.0,0.00014626,2]
[404246629,1769999441225,-6002.71,0.00014649,2]
[404246630,1769999441235,-6002.71,0.00014688,2]
[404246631,1769999441244,-500.0,0.00014706,2]
[404246632,1769999441253,-6002.71,0.00014726,2]
[404246633,1769999441262,-1108.39868404,0.00014752,2]
[404246634,1769999441270,-6002.71,0.00014765,2]
[404246635,1769999441279,-6002.71,0.00014803,2]
[404246636,1769999441288,-13796.64598922,0.00014818,2]
[404246637,1769999441301,-166.66,0.00014832,2]
[404246638,1769999441310,-8843.25208213,0.0001484,2]
[404246639,1769999441319,-6002.71,0.00014842,2]
[404246640,1769999441328,-6002.71,0.0001488,2]
[404246642,1769999441340,-6002.71,0.00014919,2]
[404246643,1769999441348,-222.63001925,0.0001495,2]
[404246644,1769999441357,-6002.71,0.00014957,2]
[404246645,1769999441367,-213.0,0.00014964,2]
[404246646,1769999441376,-1875.84,0.00014974,2]
[404246647,1769999441385,-6002.71,0.00014995,2]
[404246648,1769999441394,-250.0,0.00015,2]
[404246649,1769999441403,-151.0,0.00015002,2]
[404246650,1769999441413,-151.0,0.00015006,2]
[404246651,1769999441422,-165.71,0.00015006,2]
[404246652,1769999441430,-6002.71,0.00015034,2]
[404246653,1769999441439,-6002.71,0.00015072,2]
[404246654,1769999441448,-1153.37125092,0.00015089,2]
[404246655,1769999441457,-1153.37125092,0.00015089,2]
[404246656,1769999441467,-6002.71,0.00015111,2]
[404246658,1769999441476,-2554.95467254,0.00015134,2]
[404246659,1769999441485,-1680.0,0.00015134,2]
[404246660,1769999441494,-6002.71,0.00015149,2]
[404246661,1769999441503,-6002.71,0.00015188,2]
[404246662,1769999441516,-162.0,0.000152,2]
[404246663,1769999441525,-6002.71,0.00015226,2]
[404246664,1769999441534,-500.0,0.00015233,2]
[404246665,1769999441543,-500.0,0.00015254,2]
[404246666,1769999441551,-6002.71,0.00015264,2]
[404246667,1769999441561,-8843.25208213,0.00015277,2]
[404246668,1769999441570,-6002.71,0.00015303,2]
[404246669,1769999441579,-150.99,0.0001531,2]
[404246671,1769999441588,-218.24,0.0001531,2]
[404246672,1769999441597,-6002.71,0.00015341,2]
[404246673,1769999441606,-247.85,0.00015442,2]
[404246674,1769999441615,-1108.39868404,0.00015539,2]
[404246675,1769999441624,-150.00030077,0.00015548,2]
[404246676,1769999441633,-166.66,0.00015648,2]
[404246677,1769999441642,-1153.37125092,0.00015651,2]
[404246678,1769999441651,-500.0,0.00015699,2]
[404246679,1769999441660,-500.0,0.00015699,2]
[404246680,1769999441670,-8843.25208213,0.00015714,2]
[404246681,1769999441679,-500.0,0.00015754,2]
[404246682,1769999441689,-500.0,0.00015754,2]
[404246683,1769999441699,-500.0,0.00015802,2]
[404246685,1769999441708,-195.21118185,0.00015807,2]
[404246686,1769999441717,-500.0,0.00015809,2]
[404246687,1769999441726,-500.0,0.00015809,2]
[404246688,1769999441735,-500.0,0.00015863,2]
[404246689,1769999441744,-436.596489,0.00015863,2]
[404246690,1769999441753,-500.0,0.00015918,2]
[404246691,1769999441762,-222.63001925,0.00015933,2]
[404246692,1769999441772,-500.0,0.00015973,2]
[404246693,1769999441781,-956.83032625,0.00016,2]
[404246694,1769999441791,-270.91542523,0.00016,2]
[404246695,1769999441800,-421.15115649,0.00016,2]
[404246696,1769999441810,-150.44801747,0.00016,2]
[404246697,1769999441819,-500.0,0.00016027,2]
[404246698,1769999441828,-1413.88417946,0.00016106,2]
[404246700,1769999441838,-3412.42,0.00016116,2]
[404246701,1769999441847,-8843.25208213,0.00016152,2]
[404246702,1769999441856,-614.02070577,0.00016215,2]
[404246703,1769999441866,-276.31975293,0.00016215,2]
[404246704,1769999441875,-500.0,0.00016215,2]
[404246705,1769999441884,-333.70848023,0.00016215,2]
[404246706,1769999441893,-500.0,0.00016215,2]
[404246707,1769999441902,-500.0,0.00016215,2]
[404246708,1769999441911,-500.0,0.00016215,2]
[404246709,1769999441920,-500.0,0.00016215,2]
[404246710,1769999441929,-500.0,0.00016215,2]
[404246711,1769999441939,-500.0,0.00016215,2]
[404246712,1769999441948,-500.0,0.00016215,2]
[404246714,1769999441957,-500.0,0.00016215,2]
[404246715,1769999441966,-500.0,0.00016215,2]
[404246716,1769999441975,-176.00718556,0.00016215,2]
[404246717,1769999441986,-500.0,0.00016215,2]
[404246718,1769999441995,-500.0,0.00016215,2]
[404246720,1769999442004,-156.36625295,0.00016215,2]
[404246721,1769999442012,-163.45412131,0.00016215,2]
[404246722,1769999442021,-500.3077923,0.00016215,2]
[404246723,1769999442031,-172.55407355,0.00016215,2]
[404246724,1769999442039,-500.0,0.00016215,2]
[404246725,1769999442048,-500.0,0.00016215,2]
[404246726,1769999442057,-208.45321153,0.00016215,2]
[404246728,1769999442066,-500.0,0.00016215,2]
[404246729,1769999442076,-500.0,0.00016215,2]
[404246730,1769999442085,-500.0,0.00016215,2]
[404246732,1769999442095,-160.21939493,0.00016215,2]
[404246733,1769999442104,-500.0,0.00016215,2]
[404246734,1769999442113,-160.23028279,0.00016215,2]
[404246735,1769999442122,-160.15877828,0.00016215,2]
[404246736,1769999442132,-210.48898828,0.00016215,2]
[404246737,1769999442141,-500.0,0.00016215,2]
[404246738,1769999442151,-500.0,0.00016215,2]
[404246739,1769999442159,-162.00308214,0.00016215,2]
[404246740,1769999442169,-500.0,0.00016215,2]
[404246741,1769999442179,-161.56165826,0.00016215,2]
[404246742,1769999442187,-500.94603502,0.00016215,2]
[404246743,1769999442196,-500.0,0.00016215,2]
[404246744,1769999442205,-500.0,0.00016215,2]
[404246745,1769999442215,-500.0,0.00016215,2]
[404246746,1769999442224,-500.0,0.00016215,2]
[404246747,1769999442233,-500.0,0.00016215,2]
[404246748,1769999442242,-500.0,0.00016215,2]
[404246749,1769999442251,-500.0,0.00016215,2]
[404246750,1769999442260,-432.35250202,0.00016215,2]
[404246751,1769999442271,-500.0,0.00016215,2]
[404246752,1769999442280,-161.22024348,0.00016215,2]
[404246753,1769999442291,-500.0,0.00016215,2]
[404246754,1769999442302,-500.0,0.00016215,2]
[404246755,1769999442312,-182.51028613,0.00016215,2]
[404246756,1769999442321,-500.0,0.00016215,2]
[404246757,1769999442331,-500.0,0.00016215,2]
[404246758,1769999442340,-392.98525694,0.00016215,2]
[404246759,1769999442349,-500.0,0.00016215,2]
[404246760,1769999442359,-208.90708764,0.00016215,2]
[404246761,1769999442369,-512.5629948,0.00016215,2]
[404246762,1769999442378,-500.0,0.00016215,2]
[404246763,1769999442387,-500.49248078,0.00016215,2]
[404246764,1769999442396,-162.17608844,0.00016215,2]
[404246765,1769999442405,-284.54369346,0.00016215,2]
[404246766,1769999442414,-161.28515099,0.00016215,2]
[404246767,1769999442423,-500.0,0.00016215,2]
[404246768,1769999442432,-500.0,0.00016215,2]
[404246769,1769999442441,-500.0,0.00016215,2]
[404246770,1769999442451,-500.0,0.00016215,2]
[404246771,1769999442460,-509.53769214,0.00016215,2]
[404246772,1769999442469,-500.95616571,0.00016215,2]
[404246773,1769999442479,-500.5035407,0.00016215,2]
[404246774,1769999442487,-160.20576125,0.00016215,2]
[404246775,1769999442496,-375.67609923,0.00016215,2]
[404246776,1769999442505,-501.13446767,0.00016215,2]
[404246777,1769999442514,-598.12324011,0.00016215,2]
[404246778,1769999442523,-500.0,0.00016215,2]
[404246779,1769999442532,-500.60328487,0.00016215,2]
[404246780,1769999442541,-309.3970797,0.00016215,2]
[404246781,1769999442550,-165.99105877,0.00016215,2]
[404246782,1769999442559,-500.0,0.00016215,2]
[404246783,1769999442568,-500.0,0.00016215,2]
[404246784,1769999442578,-471.68773156,0.00016215,2]
[404246785,1769999442587,-501.2625964,0.00016215,2]
[404246786,1769999442597,-164.83531024,0.00016215,2]
[404246787,1769999442606,-500.0,0.00016215,2]
[404246788,1769999442616,-500.0,0.00016215,2]
[404246789,1769999442625,-169.78516788,0.00016215,2]
[404246790,1769999442634,-162.7403078,0.00016215,2]
[404246791,1769999442643,-500.64291995,0.00016215,2]
[404246792,1769999442652,-500.0,0.00016215,2]
[404246793,1769999442662,-500.0,0.00016215,2]
[404246794,1769999442671,-500.0,0.00016215,2]
[404246795,1769999442681,-731.28,0.00016262,2]
[404246796,1769999442690,-1108.39868404,0.00016326,2]
[404246797,1769999442700,-500.0,0.0001635,2]
[404246798,1769999442709,-292.7464528,0.00016355,2]
[404246799,1769999442719,-772.56252063,0.00016355,2]
[404246800,1769999442728,-1362.89186116,0.00016355,2]
[404246801,1769999442737,-10091.57601831,0.00016395,2]
[404246802,1769999442746,-163.0,0.000164,2]
[404246803,1769999442755,-840.2560784,0.00016438,2]
[404246804,1769999442765,-1872.11781497,0.00016438,2]
[404246805,1769999442775,-852.89867262,0.00016438,2]
[404246806,1769999442784,-852.89867262,0.00016438,2]
[404246807,1769999442794,-852.89867262,0.00016438,2]
[404246808,1769999442804,-852.89867262,0.00016438,2]
[404246809,1769999442813,-852.89867262,0.00016438,2]
[404246810,1769999442822,-852.89867262,0.00016438,2]
[404246811,1769999442831,-852.89867262,0.00016438,2]
[404246812,1769999442840,-852.89867262,0.00016438,2]
[404246813,1769999442849,-852.89867262,0.00016438,2]
[404246814,1769999442858,-852.89867262,0.00016438,2]
[404246815,1769999442867,-852.89867262,0.00016438,2]
[404246816,1769999442876,-852.89867262,0.00016438,2]
[404246817,1769999442886,-852.89867262,0.00016438,2]
[404246819,1769999442895,-852.89867262,0.00016438,2]
[404246820,1769999442905,-852.89867262,0.00016438,2]
[404246821,1769999442913,-852.89867262,0.00016438,2]
[404246822,1769999442922,-852.89867262,0.00016438,2]
[404246823,1769999442931,-852.89867262,0.00016438,2]
[404246824,1769999442940,-852.89867262,0.00016438,2]
[404246825,1769999442949,-852.89867262,0.00016438,2]
[404246826,1769999442957,-852.89867262,0.00016438,2]
[404246827,1769999442966,-852.89867262,0.00016438,2]
[404246828,1769999443135,-852.89867262,0.00016438,2]
[404246829,1769999443153,-852.89867262,0.00016438,2]
[404246830,1769999443162,-852.89867262,0.00016438,2]
[404246831,1769999443171,-852.89867262,0.00016438,2]
[404246832,1769999443181,-852.89867262,0.00016438,2]
[404246833,1769999443190,-852.89867262,0.00016438,2]
[404246834,1769999443199,-852.89867262,0.00016438,2]
[404246835,1769999443208,-852.89867262,0.00016438,2]
[404246836,1769999443218,-852.89867262,0.00016438,2]
[404246837,1769999443227,-852.89867262,0.00016438,2]
[404246838,1769999443236,-852.89867262,0.00016438,2]
[404246839,1769999443245,-852.89867262,0.00016438,2]
[404246840,1769999443254,-852.89867262,0.00016438,2]
[404246841,1769999443263,-852.89867262,0.00016438,2]
[404246842,1769999443273,-852.89867262,0.00016438,2]
[404246843,1769999443282,-852.89867262,0.00016438,2]
[404246844,1769999443292,-852.89867262,0.00016438,2]
[404246845,1769999443302,-852.89867262,0.00016438,2]
[404246846,1769999443310,-852.89867262,0.00016438,2]
[404246847,1769999443319,-852.89867262,0.00016438,2]
[404246848,1769999443329,-852.89867262,0.00016438,2]
[404246849,1769999443338,-852.89867262,0.00016438,2]
[404246850,1769999443348,-852.89867262,0.00016438,2]
[404246851,1769999443357,-852.89867262,0.00016438,2]
[404246852,1769999443367,-852.89867262,0.00016438,2]
[404246853,1769999443375,-852.89867262,0.00016438,2]
[404246854,1769999443385,-852.89867262,0.00016438,2]
[404246855,1769999443394,-852.89867262,0.00016438,2]
[404246856,1769999443403,-852.89867262,0.00016438,2]
[404246857,1769999443412,-852.89867262,0.00016438,2]
[404246858,1769999443422,-852.89867262,0.00016438,2]
[404246859,1769999443431,-852.89867262,0.00016438,2]
[404246860,1769999443440,-852.89867262,0.00016438,2]
[404246861,1769999443449,-852.89867262,0.00016438,2]
[404246862,1769999443458,-852.89867262,0.00016438,2]
[404246863,1769999443467,-852.89867262,0.00016438,2]
[404246864,1769999443477,-852.89867262,0.00016438,2]
[404246865,1769999443486,-2383.29825924,0.00016438,2]
[404246866,1769999443495,-2383.29825924,0.00016438,2]
[404246867,1769999443504,-2383.29825924,0.00016438,2]
[404246868,1769999443513,-2383.29825924,0.00016438,2]
[404246869,1769999443522,-2383.29825924,0.00016438,2]
[404246870,1769999443531,-2383.29825924,0.00016438,2]
[404246871,1769999443541,-2383.29825924,0.00016438,2]
[404246872,1769999443550,-2383.29825924,0.00016438,2]
[404246873,1769999443559,-2383.29825924,0.00016438,2]
[404246874,1769999443568,-2383.29825924,0.00016438,2]
[404246875,1769999443577,-2383.29825924,0.00016438,2]
[404246876,1769999443586,-2383.29825924,0.00016438,2]
[404246877,1769999443596,-2383.29825924,0.00016438,2]
[404246878,1769999443605,-2383.29825924,0.00016438,2]
[404246879,1769999443614,-2383.29825924,0.00016438,2]
[404246880,1769999443623,-2383.29825924,0.00016438,2]
[404246882,1769999443632,-2383.29825924,0.00016438,2]
[404246884,1769999443642,-2383.29825924,0.00016438,2]
[404246886,1769999443651,-2383.29825924,0.00016438,2]
[404246888,1769999443660,-2383.29825924,0.00016438,2]
[404246890,1769999443669,-2383.29825924,0.00016438,2]
[404246892,1769999443679,-2383.29825924,0.00016438,2]
[404246894,1769999443688,-2383.29825924,0.00016438,2]
[404246896,1769999443698,-2383.29825924,0.00016438,2]
[404246899,1769999443707,-2383.29825924,0.00016438,2]
[404246900,1769999443716,-2383.29825924,0.00016438,2]
[404246901,1769999443725,-2383.29825924,0.00016438,2]
[404246902,1769999443734,-2383.29825924,0.00016438,2]
[404246903,1769999443743,-2383.29825924,0.00016438,2]
[404246904,1769999443752,-2383.29825921,0.00016438,2]
[404246905,1769999443761,-250.55733734,0.00016438,2]
[404246906,1769999443771,-800.78453244,0.00016438,2]
[404246907,1769999443780,-166.66,0.00016464,2]
[404246908,1769999443790,-163.0,0.000165,2]
[404246909,1769999443800,-500.0,0.00016549,2]
[404246910,1769999443809,-159.04434353,0.00016568,2]
[404246911,1769999443818,-8843.25208213,0.00016589,2]
[404246912,1769999443828,-2351.0,0.00016647,2]
[404246913,1769999443837,-163.0,0.0001672,2]
[404246914,1769999443847,-501.02558099,0.00016763,2]
[404246915,1769999443855,-896.81248005,0.00016763,2]
[404246916,1769999443865,-1001.09302375,0.00016763,2]
[404246917,1769999443874,-1000.0,0.00016763,2]
[404246918,1769999443883,-1002.81173723,0.00016763,2]
[404246919,1769999443893,-1000.0,0.00016763,2]
[404246920,1769999443902,-1000.0,0.00016763,2]
[404246921,1769999443911,-1000.0,0.00016763,2]
[404246922,1769999443920,-1000.0,0.00016763,2]
[404246923,1769999443928,-486.90150068,0.00016763,2]
[404246924,1769999443938,-1000.0,0.00016763,2]
[404246925,1769999443947,-464.35211832,0.00016763,2]
[404246926,1769999443956,-1000.0,0.00016763,2]
[404246927,1769999443965,-500.89178293,0.00016763,2]
[404246928,1769999443975,-1000.0,0.00016763,2]
[404246929,1769999443983,-200.70028911,0.00016763,2]
[404246930,1769999443993,-1000.0,0.00016763,2]
[404246931,1769999444002,-1000.0,0.00016763,2]
[404246932,1769999444011,-500.89784707,0.00016763,2]
[404246933,1769999444019,-1000.0,0.00016763,2]
[404246934,1769999444028,-1000.0,0.00016763,2]
[404246935,1769999444037,-1017.01569061,0.00016763,2]
[404246936,1769999444046,-1000.0,0.00016763,2]
[404246937,1769999444055,-1000.0,0.00016763,2]
[404246938,1769999444064,-1000.0,0.00016763,2]
[404246939,1769999444074,-1002.35695832,0.00016763,2]
[404246940,1769999444083,-1000.0,0.00016763,2]
[404246941,1769999444092,-1000.0,0.00016763,2]
[404246942,1769999444101,-1000.0,0.00016763,2]
[404246943,1769999444110,-1000.0,0.00016763,2]
[404246944,1769999444118,-1000.0,0.00016763,2]
[404246945,1769999444127,-1000.0,0.00016763,2]
[404246946,1769999444136,-1086.45296103,0.00016763,2]
[404246947,1769999444146,-1000.0,0.00016763,2]
[404246948,1769999444154,-1000.0,0.00016763,2]
[404246949,1769999444163,-1001.08336444,0.00016763,2]
[404246950,1769999444172,-1000.0,0.00016763,2]
[404246951,1769999444182,-550.09529227,0.00016763,2]
[404246952,1769999444191,-1000.0,0.00016763,2]
[404246953,1769999444200,-1000.0,0.00016763,2]
[404246954,1769999444209,-1000.0,0.00016763,2]
[404246955,1769999444218,-1000.0,0.00016763,2]
[404246956,1769999444227,-1000.0,0.00016763,2]
[404246957,1769999444237,-185.46503654,0.00016763,2]
[404246958,1769999444247,-291.61164288,0.00016763,2]
[404246959,1769999444256,-1000.0,0.00016763,2]
[404246960,1769999444265,-1000.0,0.00016763,2]
[404246961,1769999444274,-500.0,0.00016898,2]
[404246962,1769999444283,-222.63001925,0.00016917,2]
[404246963,1769999444294,-447.84750097,0.0001699,2]
[404246964,1769999444303,-2205.73614126,0.00017,3]
[404246965,1769999444311,-300.0,0.00017,2]
[404246966,1769999444320,-157726.06092768,0.00017,2]
[404246967,1769999444329,-8843.25208213,0.00017026,2]
[404246968,1769999444340,-824.0,0.0001704,2]
[404246969,1769999444350,-150.00030077,0.00017055,2]
[404246970,1769999444360,-322.6107,0.00017099,2]
[404246971,1769999444369,-578.20924308,0.00017099,2]
[404246972,1769999444378,-500.0,0.00017099,2]
[404246973,1769999444387,-500.0,0.00017099,2]
[404246974,1769999444396,-250.0,0.00017099,2]
[404246975,1769999444405,-500.0,0.00017099,2]
[404246976,1769999444414,-250.0,0.00017099,2]
[404246977,1769999444423,-500.0,0.00017099,2]
[404246978,1769999444433,-250.0,0.00017099,2]
[404246979,1769999444441,-500.0,0.00017099,2]
[404246980,1769999444450,-500.0,0.00017099,2]
[404246981,1769999444459,-500.0,0.00017099,2]
[404246982,1769999444468,-250.0,0.00017099,2]
[404246983,1769999444478,-500.0,0.00017099,2]
[404246984,1769999444487,-500.0,0.00017099,2]
[404246985,1769999444496,-500.0,0.00017099,2]
[404246986,1769999444505,-250.0,0.00017099,2]
[404246987,1769999444514,-500.0,0.00017099,2]
[404246988,1769999444523,-500.0,0.00017099,2]
[404246990,1769999444532,-500.0,0.00017099,2]
[404246991,1769999444540,-250.0,0.00017099,2]
[404246993,1769999444550,-250.0,0.00017099,2]
[404246994,1769999444558,-500.0,0.00017099,2]
[404246995,1769999444567,-500.0,0.00017099,2]
[404246996,1769999444577,-500.0,0.00017099,2]
[404246997,1769999444586,-250.0,0.00017099,2]
[404246998,1769999444596,-250.0,0.00017099,2]
[404246999,1769999444605,-500.0,0.00017099,2]
[404247000,1769999444614,-879.69414454,0.00017099,2]
[404247001,1769999444623,-500.0,0.00017099,2]
[404247002,1769999444632,-500.0,0.00017099,2]
[404247003,1769999444641,-250.0,0.00017099,2]
[404247004,1769999444650,-250.0,0.00017099,2]
[404247005,1769999444659,-500.0,0.00017099,2]
[404247006,1769999444669,-500.0,0.00017099,2]
[404247007,1769999444678,-500.0,0.00017099,2]
[404247008,1769999444687,-250.0,0.00017099,2]
[404247009,1769999444696,-250.0,0.00017099,2]
[404247010,1769999444705,-500.0,0.00017099,2]
[404247011,1769999444714,-500.0,0.00017099,2]
[404247012,1769999444722,-344.38825217,0.00017099,2]
[404247013,1769999444731,-250.0,0.00017099,2]
[404247014,1769999444740,-250.0,0.00017099,2]
[404247015,1769999444749,-500.0,0.00017099,2]
[404247016,1769999444759,-500.0,0.00017099,2]
[404247017,1769999444768,-250.0,0.00017099,2]
[404247018,1769999444777,-250.0,0.00017099,2]
[404247019,1769999444786,-500.0,0.00017099,2]
[404247020,1769999444796,-500.0,0.00017099,2]
[404247021,1769999444805,-500.0,0.00017099,2]
[404247022,1769999444814,-500.0,0.00017099,2]
[404247023,1769999444823,-250.0,0.00017099,2]
[404247024,1769999444832,-500.0,0.00017099,2]
[404247025,1769999444841,-500.0,0.00017099,2]
[404247026,1769999444851,-250.0,0.00017099,2]
[404247027,1769999444860,-250.0,0.00017099,2]
[404247028,1769999444869,-250.0,0.00017099,2]
[404247029,1769999444878,-250.0,0.00017099,2]
[404247030,1769999444887,-174.61919141,0.00017099,2]
[404247031,1769999444896,-168.90333538,0.00017099,2]
[404247032,1769999444905,-721.12765535,0.00017099,2]
[404247033,1769999444914,-500.0,0.00017099,2]
[404247034,1769999444923,-500.0,0.00017099,2]
[404247035,1769999444931,-500.0,0.00017099,2]
[404247036,1769999444941,-500.0,0.00017099,2]
[404247037,1769999444949,-500.0,0.00017099,2]
[404247038,1769999444958,-500.0,0.00017099,2]
[404247039,1769999444967,-500.0,0.00017099,2]
[404247040,1769999444976,-250.0,0.00017099,2]
[404247041,1769999444985,-500.0,0.00017099,2]
[404247042,1769999444994,-250.0,0.00017099,2]
[404247043,1769999445003,-500.0,0.00017099,2]
[404247044,1769999445013,-250.0,0.00017099,2]
[404247045,1769999445023,-500.0,0.00017099,2]
[404247046,1769999445032,-250.0,0.00017099,2]
[404247047,1769999445041,-500.0,0.00017099,2]
[404247048,1769999445050,-250.0,0.00017099,2]
[404247049,1769999445058,-250.0,0.00017099,2]
[404247050,1769999445068,-500.0,0.00017099,2]
[404247051,1769999445077,-250.0,0.00017099,2]
[404247052,1769999445085,-250.0,0.00017099,2]
[404247053,1769999445094,-500.0,0.00017099,2]
[404247054,1769999445103,-250.0,0.00017099,2]
[404247055,1769999445112,-250.0,0.00017099,2]
[404247056,1769999445121,-500.0,0.00017099,2]
[404247057,1769999445130,-250.0,0.00017099,2]
[404247058,1769999445139,-250.0,0.00017099,2]
[404247059,1769999445150,-250.0,0.00017099,2]
[404247060,1769999445159,-250.0,0.00017099,2]
[404247061,1769999445170,-500.0,0.00017099,2]
[404247062,1769999445179,-1428.38747117,0.00017099,2]
[404247063,1769999445188,-250.0,0.00017099,2]
[404247064,1769999445197,-250.0,0.00017099,2]
[404247065,1769999445206,-500.0,0.00017099,2]
[404247066,1769999445215,-250.0,0.00017099,2]
[404247067,1769999445223,-250.0,0.00017099,2]
[404247068,1769999445232,-500.0,0.00017099,2]
[404247069,1769999445241,-250.0,0.00017099,2]
[404247070,1769999445250,-209.40437684,0.00017099,2]
[404247071,1769999445258,-500.0,0.00017099,2]
[404247072,1769999445267,-250.0,0.00017099,2]
[404247073,1769999445276,-500.0,0.00017099,2]
[404247074,1769999445286,-250.0,0.00017099,2]
[404247075,1769999445299,-250.0,0.00017099,2]
[404247076,1769999445308,-500.0,0.00017099,2]
[404247077,1769999445318,-500.0,0.00017099,2]
[404247078,1769999445327,-500.0,0.00017099,2]
[404247079,1769999445339,-151.0,0.00017099,2]
[404247080,1769999445349,-151.0,0.00017099,2]
[404247081,1769999445358,-151.0,0.00017099,2]
[404247082,1769999445370,-151.0,0.00017099,2]
[404247083,1769999445379,-151.0,0.00017099,2]
[404247084,1769999445389,-151.0,0.00017099,2]
[404247085,1769999445399,-151.0,0.00017099,2]
[404247086,1769999445410,-151.0,0.00017099,2]
[404247087,1769999445420,-151.0,0.00017099,2]
[404247088,1769999445429,-151.0,0.00017099,2]
[404247089,1769999445475,-151.0,0.00017099,2]
[404247090,1769999445485,-500.0,0.00017099,2]
[404247091,1769999445494,-500.0,0.00017099,2]
[404247092,1769999445503,-500.0,0.00017099,2]
[404247093,1769999445516,-500.0,0.00017099,2]
[404247094,1769999445525,-500.0,0.00017099,2]
[404247095,1769999445535,-500.0,0.00017099,2]